[Event "Limburg Open 2022"]
[Site "Maastricht"]
[Date "2022.06.04"]
[Round "2.3"]
[White "Strating, Sybolt"]
[Black "Gurevich, Mikhail"]
[Result "0-1"]
[ECO "A88"]
[WhiteElo "2291"]
[BlackElo "2576"]
[PlyCount "72"]
[EventDate "2022.06.03"]
[EventType "swiss"]
[EventRounds "7"]
[EventCountry "NED"]
[SourceTitle "Limburg Open"]
[Source "Limburg Open"]
[SourceDate "2022.06.06"]
[SourceVersion "7"]
[SourceVersionDate "2022.06.06"]
[SourceQuality "1"]
[TimeControl "7200+15"]

1. d4 {[%emt 0:00:07]} d6 {[%emt 0:00:24]} 2. c4 {[%emt 0:00:09]} f5 {[%emt 0:
00:06]} 3. Nf3 {[%emt 0:00:09]} Nf6 {[%emt 0:00:06]} 4. g3 {[%emt 0:00:07]} g6
{[%emt 0:00:04]} 5. Bg2 {[%emt 0:00:06]} Bg7 {[%emt 0:00:03]} 6. O-O {[%emt 0:
00:13]} O-O {[%emt 0:00:06]} 7. Nc3 {[%emt 0:00:04]} c6 {[%emt 0:00:38]} 8. d5
{[%emt 0:02:18]} e5 {[%emt 0:00:27]} 9. dxe6 {[%emt 0:02:55]} Bxe6 {[%emt 0:00:
09]} 10. b3 {[%emt 0:02:47]} Qe7 {[%emt 0:01:22]} 11. Ba3 {[%emt 0:05:39]} Rd8
{[%emt 0:00:46]} 12. Nd4 {[%emt 0:05:23]} Na6 {[%emt 0:19:29]} 13. Qc2 {
[%emt 0:10:59]} Bd7 {[%emt 0:04:02]} 14. Rad1 {[%emt 0:03:43]} Nc5 {[%emt 0:00:
18]} 15. Rfe1 {[%emt 0:11:59]} Re8 {[%emt 0:00:51]} 16. Bc1 {[%emt 0:17:16]}
Rad8 {[%emt 0:14:17]} 17. f3 {[%emt 0:05:09]} Bc8 {[%emt 0:04:58]} 18. b4 {
[%emt 0:10:28]} Ne6 {[%emt 0:11:34]} 19. Nb3 {[%emt 0:01:06]} d5 {[%emt 0:01:
39]} 20. cxd5 {[%emt 0:05:20]} cxd5 {[%emt 0:02:54]} 21. a3 {[%emt 0:13:27]} d4
{[%emt 0:08:48]} 22. Nb5 {[%emt 0:01:13]} Nd5 {[%emt 0:00:08]} 23. Nxa7 {
[%emt 0:13:13]} Bd7 {[%emt 0:07:21]} 24. Qc4 {[%emt 0:01:49]} Ba4 {[%emt 0:05:
14]} 25. f4 {[%emt 0:06:55]} Nc3 {[%emt 0:03:56]} 26. b5 {[%emt 0:02:53]} Bxb3
{[%emt 0:07:53]} 27. Qxb3 {[%emt 0:00:02]} Qc5 {[%emt 0:00:13]} 28. b6 {
[%emt 0:00:21]} Nxd1 {[%emt 0:00:28]} 29. Rxd1 {[%emt 0:00:08]} d3+ {[%emt 0:
00:20]} 30. e3 {[%emt 0:00:31]} Qc2 {[%emt 0:00:20]} 31. Qxc2 {[%emt 0:00:44]}
dxc2 {[%emt 0:00:09]} 32. Rf1 {[%emt 0:00:41]} Nc5 {[%emt 0:01:15]} 33. Bf3 {
[%emt 0:00:16]} Nb3 {[%emt 0:02:47]} 34. Nb5 {[%emt 0:00:05]} Nxc1 {[%emt 0:00:
20]} 35. Rxc1 {[%emt 0:00:01]} Rd2 {[%emt 0:00:08]} 36. Nd4 {[%emt 0:00:35]}
Rxe3 {[%emt 0:00:21]} 0-1

[Event "Limburg Open 2022"]
[Site "Maastricht"]
[Date "2022.06.04"]
[Round "2.4"]
[White "Dardha, Daniel"]
[Black "Van Roon, Sjoerd"]
[Result "1/2-1/2"]
[ECO "E73"]
[WhiteElo "2555"]
[BlackElo "2280"]
[PlyCount "122"]
[EventDate "2022.06.03"]
[EventType "swiss"]
[EventRounds "7"]
[EventCountry "NED"]
[SourceTitle "Limburg Open"]
[Source "Limburg Open"]
[SourceDate "2022.06.06"]
[SourceVersion "7"]
[SourceVersionDate "2022.06.06"]
[SourceQuality "1"]
[TimeControl "7200+15"]

1. d4 {[%emt 0:00:23]} Nf6 {[%emt 0:00:12]} 2. c4 {[%emt 0:00:07]} g6 {[%emt 0:
00:08]} 3. h4 {[%emt 0:00:06]} d6 {[%emt 0:00:38]} 4. Nc3 {[%emt 0:00:09]} Bg7
{[%emt 0:00:25]} 5. e4 {[%emt 0:00:09]} c5 {[%emt 0:00:59]} 6. d5 {[%emt 0:00:
08]} O-O {[%emt 0:02:18]} 7. Be2 {[%emt 0:00:38]} e6 {[%emt 0:00:17]} 8. h5 {
[%emt 0:00:07]} exd5 {[%emt 0:01:32]} 9. exd5 {[%emt 0:00:06]} Re8 {[%emt 0:03:
08]} 10. Kf1 {[%emt 0:01:36]} Nbd7 {[%emt 0:01:31]} 11. h6 {[%emt 0:00:13]} Bh8
{[%emt 0:00:26]} 12. Bg5 {[%emt 0:00:08]} Qb6 {[%emt 0:06:19]} 13. b3 {[%emt 0:
00:16]} Ne4 {[%emt 0:05:05]} 14. Nxe4 {[%emt 0:00:13]} Rxe4 {[%emt 0:00:04]}
15. Nf3 {[%emt 0:00:26]} Ne5 {[%emt 0:13:00]} 16. Rc1 {[%emt 0:05:47]} Bf5 {
[%emt 0:13:18]} 17. Kg1 {[%emt 0:16:20]} Bg4 {[%emt 0:18:48]} 18. Qc2 {[%emt 0:
04:28]} f5 {[%emt 0:03:20]} 19. Be3 {[%emt 0:07:24]} Re8 {[%emt 0:14:38]} 20.
Ng5 {[%emt 0:13:50]} Bxe2 {[%emt 0:00:11]} 21. Qxe2 {[%emt 0:00:13]} Rg4 {
[%emt 0:00:26]} 22. Qd2 {[%emt 0:13:12]} Bf6 {[%emt 0:07:55]} 23. Rh3 {[%emt 0:
03:01]} Bxg5 {[%emt 0:13:52]} 24. Bxg5 {[%emt 0:03:15]} Rd4 {[%emt 0:00:23]}
25. Qe2 {[%emt 0:02:58]} f4 {[%emt 0:02:24]} 26. Rd1 {[%emt 0:13:28]} Rxd1+ {
[%emt 0:03:53]} 27. Qxd1 {[%emt 0:00:03]} Qa5 {[%emt 0:00:17]} 28. Bxf4 {
[%emt 0:04:40]} Nxc4 {[%emt 0:00:44]} 29. Kf1 {[%emt 0:08:21]} Qxa2 {[%emt 0:
00:57]} 30. Kg1 {[%emt 0:08:12]} Qa5 {[%emt 0:00:58]} 31. Kh2 {[%emt 0:00:41]}
Ne5 {[%emt 0:00:19]} 32. Bd2 {[%emt 0:03:34]} Qd8 {[%emt 0:01:53]} 33. f4 {
[%emt 0:00:32]} Nd7 {[%emt 0:00:41]} 34. Qa1 {[%emt 0:02:33]} Qf6 {[%emt 0:00:
09]} 35. Qxa7 {[%emt 0:00:37]} Re2 {[%emt 0:00:33]} 36. Bc1 {[%emt 0:03:49]}
Re1 {[%emt 0:00:51]} 37. Bd2 {[%emt 0:01:57]} Re2 {[%emt 0:00:05]} 38. Qa8+ {
[%emt 0:00:28]} Qf8 {[%emt 0:01:48]} 39. Qxf8+ {[%emt 0:01:05]} Kxf8 {[%emt 0:
00:09]} 40. Bc3 {[%emt 0:00:04]} Kf7 {[%emt 0:01:04]} 41. Rg3 {[%emt 0:02:44]}
Rf2 {[%emt 0:01:17]} 42. Re3 {[%emt 0:00:05]} Rxf4 {[%emt 0:00:22]} 43. Re6 {
[%emt 0:00:36]} Nf6 {[%emt 0:00:12]} 44. Rxd6 {[%emt 0:00:38]} Ne4 {[%emt 0:00:
09]} 45. Rd7+ {[%emt 0:00:28]} Ke8 {[%emt 0:00:01]} 46. Rxh7 {[%emt 0:00:19]}
Rh4+ {[%emt 0:00:12]} 47. Kg1 {[%emt 0:00:01]} Nxc3 {[%emt 0:00:01]} 48. g3 {
[%emt 0:00:57]} Rh5 {[%emt 0:00:17]} 49. d6 {[%emt 0:00:10]} Ne4 {[%emt 0:00:
27]} 50. Re7+ {[%emt 0:00:57]} Kd8 {[%emt 0:00:07]} 51. Rxe4 {[%emt 0:00:14]}
Rxh6 {[%emt 0:00:03]} 52. Re6 {[%emt 0:00:19]} Kd7 {[%emt 0:00:30]} 53. Re7+ {
[%emt 0:00:16]} Kxd6 {[%emt 0:00:30]} 54. Rxb7 {[%emt 0:00:01]} Rh8 {[%emt 0:
00:22]} 55. Kg2 {[%emt 0:00:29]} Kc6 {[%emt 0:00:23]} 56. Rf7 {[%emt 0:00:02]}
Rb8 {[%emt 0:00:08]} 57. Rf3 {[%emt 0:00:02]} Kd5 {[%emt 0:00:02]} 58. Kh3 {
[%emt 0:00:25]} Rb4 {[%emt 0:00:18]} 59. g4 {[%emt 0:00:08]} g5 {[%emt 0:00:53]
} 60. Kg3 {[%emt 0:00:25]} Kd4 {[%emt 0:00:16]} 61. Kf2 {[%emt 0:00:03]} Ke5 {
[%emt 0:00:30]} 1/2-1/2

[Event "Limburg Open 2022"]
[Site "Maastricht"]
[Date "2022.06.04"]
[Round "2.5"]
[White "Grutter, Tim"]
[Black "Van Foreest, Lucas"]
[Result "0-1"]
[ECO "B01"]
[WhiteElo "2234"]
[BlackElo "2553"]
[PlyCount "122"]
[EventDate "2022.06.03"]
[EventType "swiss"]
[EventRounds "7"]
[EventCountry "NED"]
[SourceTitle "Limburg Open"]
[Source "Limburg Open"]
[SourceDate "2022.06.06"]
[SourceVersion "7"]
[SourceVersionDate "2022.06.06"]
[SourceQuality "1"]
[TimeControl "7200+15"]

1. e4 {[%emt 0:00:03]} d5 {[%emt 0:02:10]} 2. exd5 {[%emt 0:00:05]} Qxd5 {
[%emt 0:00:20]} 3. Nc3 {[%emt 0:00:20]} Qd6 {[%emt 0:00:25]} 4. d4 {[%emt 0:03:
02]} Nf6 {[%emt 0:00:07]} 5. Nb5 {[%emt 0:03:25]} Qd8 {[%emt 0:03:00]} 6. c4 {
[%emt 0:00:19]} Bg4 {[%emt 0:06:36]} 7. Be2 {[%emt 0:06:14]} Bxe2 {[%emt 0:00:
07]} 8. Nxe2 {[%emt 0:00:11]} c6 {[%emt 0:00:09]} 9. Nbc3 {[%emt 0:00:13]} g6 {
[%emt 0:00:14]} 10. Bf4 {[%emt 0:03:25]} Bg7 {[%emt 0:02:05]} 11. Qd2 {[%emt 0:
01:59]} O-O {[%emt 0:00:07]} 12. Bh6 {[%emt 0:04:12]} Bxh6 {[%emt 0:00:05]} 13.
Qxh6 {[%emt 0:00:06]} Nbd7 {[%emt 0:00:24]} 14. O-O {[%emt 0:05:58]} Re8 {
[%emt 0:00:08]} 15. Rfd1 {[%emt 0:03:03]} Qa5 {[%emt 0:00:12]} 16. d5 {[%emt 0:
07:55]} cxd5 {[%emt 0:22:39]} 17. Nxd5 {[%emt 0:02:05]} Nxd5 {[%emt 0:00:07]}
18. Rxd5 {[%emt 0:01:09]} Qc7 {[%emt 0:00:40]} 19. b3 {[%emt 0:04:23]} Nf6 {
[%emt 0:00:06]} 20. Rd4 {[%emt 0:04:01]} Rad8 {[%emt 0:01:04]} 21. Rad1 {
[%emt 0:05:11]} Ng4 {[%emt 0:05:31]} 22. Qh3 {[%emt 0:10:44]} h5 {[%emt 0:03:
01]} 23. Qg3 {[%emt 0:02:32]} Qa5 {[%emt 0:10:31]} 24. h3 {[%emt 0:16:28]} Rxd4
{[%emt 0:00:41]} 25. Nxd4 {[%emt 0:00:06]} Nf6 {[%emt 0:00:15]} 26. a4 {
[%emt 0:03:36]} Rd8 {[%emt 0:00:45]} 27. Qf3 {[%emt 0:00:56]} Qe5 {[%emt 0:05:
15]} 28. Nb5 {[%emt 0:05:54]} Rxd1+ {[%emt 0:02:20]} 29. Qxd1 {[%emt 0:00:01]}
a6 {[%emt 0:00:10]} 30. Nd4 {[%emt 0:01:25]} Ne4 {[%emt 0:00:58]} 31. Nf3 {
[%emt 0:02:47]} Qb2 {[%emt 0:03:34]} 32. Qd4 {[%emt 0:01:12]} Qxd4 {[%emt 0:03:
06]} 33. Nxd4 {[%emt 0:00:02]} e5 {[%emt 0:14:42]} 34. Nf3 {[%emt 0:04:00]} f6
{[%emt 0:01:45]} 35. a5 {[%emt 0:05:18]} Kf7 {[%emt 0:01:40]} 36. Kf1 {[%emt 0:
01:16]} Nc5 {[%emt 0:00:40]} 37. Nd2 {[%emt 0:00:50]} Ke7 {[%emt 0:04:00]} 38.
Ke2 {[%emt 0:00:34]} Ne6 {[%emt 0:00:06]} 39. b4 {[%emt 0:03:03]} Nf4+ {
[%emt 0:00:06]} 40. Kf3 {[%emt 0:01:15]} f5 {[%emt 0:03:01]} 41. Nb3 {[%emt 0:
01:16]} Nd3 {[%emt 0:00:30]} 42. b5 {[%emt 0:00:16]} Ne1+ {[%emt 0:07:21]} 43.
Ke2 {[%emt 0:01:31]} Nxg2 {[%emt 0:05:37]} 44. Nc5 {[%emt 0:00:05]} Nf4+ {
[%emt 0:00:04]} 45. Kf3 {[%emt 0:00:29]} Ne6 {[%emt 0:01:59]} 46. Nxb7 {
[%emt 0:02:40]} axb5 {[%emt 0:00:12]} 47. cxb5 {[%emt 0:02:06]} Nd4+ {[%emt 0:
00:05]} 48. Kg3 {[%emt 0:02:00]} Nxb5 {[%emt 0:00:21]} 49. a6 {[%emt 0:01:32]}
g5 {[%emt 0:00:22]} 50. h4 {[%emt 0:01:03]} f4+ {[%emt 0:00:24]} 51. Kf3 {
[%emt 0:00:14]} gxh4 {[%emt 0:01:11]} 52. Kg2 {[%emt 0:00:20]} Ke6 {[%emt 0:00:
31]} 53. Nc5+ {[%emt 0:00:16]} Kd5 {[%emt 0:01:06]} 54. Nd7 {[%emt 0:00:08]}
Ke4 {[%emt 0:01:13]} 55. Nf6+ {[%emt 0:00:28]} Kf5 {[%emt 0:00:02]} 56. Nxh5 {
[%emt 0:00:02]} Kg6 {[%emt 0:00:33]} 57. Nxf4+ {[%emt 0:00:34]} exf4 {[%emt 0:
00:01]} 58. Kh3 Kh5 59. f3 Kg5 {[%emt 0:00:01]} 60. Kh2 Kf6 {[%emt 0:00:01]}
61. Kh3 Ke5 {[%emt 0:00:03]} 0-1

[Event "Limburg Open 2022"]
[Site "Maastricht"]
[Date "2022.06.04"]
[Round "2.6"]
[White "Ernst, Sipke"]
[Black "Bomans, Arno"]
[Result "1-0"]
[ECO "A57"]
[WhiteElo "2538"]
[BlackElo "2241"]
[PlyCount "61"]
[EventDate "2022.06.03"]
[EventType "swiss"]
[EventRounds "7"]
[EventCountry "NED"]
[SourceTitle "Limburg Open"]
[Source "Limburg Open"]
[SourceDate "2022.06.06"]
[SourceVersion "7"]
[SourceVersionDate "2022.06.06"]
[SourceQuality "1"]
[TimeControl "7200+15"]

1. d4 {[%emt 0:01:04]} Nf6 {[%emt 0:02:26]} 2. c4 {[%emt 0:00:05]} c5 {[%emt 0:
00:05]} 3. d5 {[%emt 0:00:09]} b5 {[%emt 0:00:23]} 4. cxb5 {[%emt 0:00:05]} a6
{[%emt 0:00:11]} 5. e3 {[%emt 0:00:05]} e6 {[%emt 0:00:47]} 6. dxe6 {[%emt 0:
00:08]} fxe6 {[%emt 0:00:07]} 7. Nf3 {[%emt 0:00:05]} d5 {[%emt 0:00:57]} 8.
Nbd2 {[%emt 0:00:09]} Bd6 {[%emt 0:04:04]} 9. b3 {[%emt 0:06:30]} O-O {[%emt 0:
06:21]} 10. Bb2 {[%emt 0:00:35]} Qa5 {[%emt 0:03:59]} 11. a4 {[%emt 0:02:35]}
Ne4 {[%emt 0:04:58]} 12. Bd3 {[%emt 0:10:23]} c4 {[%emt 0:04:48]} 13. bxc4 {
[%emt 0:04:13]} Bb4 {[%emt 0:02:34]} 14. O-O {[%emt 0:02:29]} Nxd2 {[%emt 0:07:
45]} 15. Nxd2 {[%emt 0:00:48]} Bxd2 {[%emt 0:01:43]} 16. Qh5 {[%emt 0:00:05]}
h6 {[%emt 0:02:13]} 17. Bxg7 {[%emt 0:00:04]} Bc3 {[%emt 0:01:41]} 18. Bxh6 {
[%emt 0:05:14]} Ra7 {[%emt 0:05:20]} 19. Qg6+ {[%emt 0:03:08]} Rg7 {[%emt 0:00:
37]} 20. Bxg7 {[%emt 0:00:07]} Bxg7 {[%emt 0:00:12]} 21. cxd5 {[%emt 0:00:21]}
exd5 {[%emt 0:02:47]} 22. Rac1 {[%emt 0:00:10]} Bd7 {[%emt 0:01:38]} 23. Qh7+ {
[%emt 0:02:30]} Kf7 {[%emt 0:00:05]} 24. bxa6 {[%emt 0:02:04]} Qb6 {[%emt 0:05:
44]} 25. Rb1 {[%emt 0:02:56]} Qd6 {[%emt 0:00:43]} 26. Rb7 {[%emt 0:00:06]} Rh8
{[%emt 0:02:31]} 27. Qxh8 {[%emt 0:00:10]} Bxh8 {[%emt 0:00:16]} 28. a7 {
[%emt 0:00:04]} Nc6 {[%emt 0:01:44]} 29. a8=Q {[%emt 0:00:12]} Bf6 {[%emt 0:02:
04]} 30. Rxd7+ {[%emt 0:01:21]} Qxd7 {[%emt 0:00:14]} 31. Bb5 {[%emt 0:00:05]}
1-0

[Event "Limburg Open 2022"]
[Site "Maastricht"]
[Date "2022.06.04"]
[Round "2.7"]
[White "Zwirs, Nico"]
[Black "Noiroux, Kevin"]
[Result "1-0"]
[ECO "B01"]
[WhiteElo "2475"]
[BlackElo "2210"]
[PlyCount "69"]
[EventDate "2022.06.03"]
[EventType "swiss"]
[EventRounds "7"]
[EventCountry "NED"]
[SourceTitle "Limburg Open"]
[Source "Limburg Open"]
[SourceDate "2022.06.06"]
[SourceVersion "7"]
[SourceVersionDate "2022.06.06"]
[SourceQuality "1"]
[TimeControl "7200+15"]

1. e4 {[%emt 0:00:03]} d5 {[%emt 0:02:06]} 2. exd5 {[%emt 0:00:09]} Qxd5 {
[%emt 0:00:07]} 3. Nc3 {[%emt 0:00:05]} Qa5 {[%emt 0:00:04]} 4. d4 {[%emt 0:00:
16]} Nf6 {[%emt 0:00:07]} 5. Nf3 {[%emt 0:00:07]} Bf5 {[%emt 0:00:05]} 6. Ne5 {
[%emt 0:00:24]} c6 {[%emt 0:00:06]} 7. h4 {[%emt 0:00:08]} Nbd7 {[%emt 0:15:32]
} 8. Nc4 {[%emt 0:00:43]} Qd8 {[%emt 0:05:26]} 9. Bg5 {[%emt 0:09:23]} g6 {
[%emt 0:33:10]} 10. Bd3 {[%emt 0:16:29]} Bxd3 {[%emt 0:05:46]} 11. Qxd3 {
[%emt 0:00:07]} Bg7 {[%emt 0:00:33]} 12. O-O-O {[%emt 0:00:58]} b5 {[%emt 0:17:
41]} 13. Nd2 {[%emt 0:05:05]} h6 {[%emt 0:16:14]} 14. Bf4 {[%emt 0:03:09]} b4 {
[%emt 0:01:12]} 15. Nce4 {[%emt 0:01:52]} Nd5 {[%emt 0:01:18]} 16. Bh2 {
[%emt 0:04:08]} f5 {[%emt 0:20:16]} 17. Ng3 {[%emt 0:06:56]} h5 {[%emt 0:00:02]
} 18. Ne2 {[%emt 0:04:27]} O-O {[%emt 0:01:27]} 19. Nf4 {[%emt 0:01:12]} Nxf4 {
[%emt 0:00:30]} 20. Bxf4 {[%emt 0:00:01]} e5 {[%emt 0:01:11]} 21. Qc4+ {
[%emt 0:00:44]} Kh7 {[%emt 0:00:08]} 22. dxe5 {[%emt 0:00:13]} Bxe5 {[%emt 0:
02:17]} 23. Nf3 {[%emt 0:08:29]} Nb6 {[%emt 0:00:01]} 24. Qxb4 {[%emt 0:01:32]}
Nd5 {[%emt 0:00:23]} 25. Qb7+ {[%emt 0:00:44]} Bg7 {[%emt 0:00:30]} 26. Be5 {
[%emt 0:00:09]} Qe7 {[%emt 0:00:15]} 27. Qxe7 {[%emt 0:00:20]} Nxe7 {[%emt 0:
00:02]} 28. Ng5+ {[%emt 0:00:08]} Kg8 {[%emt 0:00:13]} 29. Bxg7 {[%emt 0:00:20]
} Kxg7 {[%emt 0:00:04]} 30. Ne6+ {[%emt 0:00:00]} Kf7 {[%emt 0:00:04]} 31. Nxf8
{[%emt 0:00:00]} Kxf8 {[%emt 0:00:03]} 32. Rhe1 {[%emt 0:00:04]} a5 {[%emt 0:
00:37]} 33. Rd6 {[%emt 0:00:14]} Re8 {[%emt 0:00:20]} 34. Rf6+ {[%emt 0:00:14]}
Kg7 {[%emt 0:00:07]} 35. Rxc6 {[%emt 0:00:06]} 1-0

[Event "Limburg Open 2022"]
[Site "Maastricht"]
[Date "2022.06.04"]
[Round "2.8"]
[White "De Rover, Yong Hoon"]
[Black "Rebers, Eugene"]
[Result "1/2-1/2"]
[ECO "B35"]
[WhiteElo "2359"]
[BlackElo "2194"]
[PlyCount "59"]
[EventDate "2022.06.03"]
[EventType "swiss"]
[EventRounds "7"]
[EventCountry "NED"]
[SourceTitle "Limburg Open"]
[Source "Limburg Open"]
[SourceDate "2022.06.06"]
[SourceVersion "7"]
[SourceVersionDate "2022.06.06"]
[SourceQuality "1"]
[TimeControl "7200+15"]

1. e4 {[%emt 0:00:23]} c5 {[%emt 0:00:10]} 2. Nf3 {[%emt 0:01:04]} g6 {[%emt 0:
00:09]} 3. d4 {[%emt 0:00:49]} cxd4 {[%emt 0:00:07]} 4. Nxd4 {[%emt 0:00:10]}
Bg7 {[%emt 0:00:08]} 5. Nc3 {[%emt 0:00:34]} Nc6 {[%emt 0:00:08]} 6. Be3 {
[%emt 0:00:17]} Nf6 {[%emt 0:00:10]} 7. Bc4 {[%emt 0:00:31]} O-O {[%emt 0:00:
11]} 8. Bb3 {[%emt 0:00:25]} d5 {[%emt 0:00:29]} 9. exd5 {[%emt 0:09:44]} Na5 {
[%emt 0:00:23]} 10. h3 {[%emt 0:06:58]} Nxb3 {[%emt 0:02:30]} 11. Nxb3 {
[%emt 0:03:53]} b6 {[%emt 0:00:14]} 12. Qd2 {[%emt 0:01:32]} Bb7 {[%emt 0:01:
41]} 13. O-O-O {[%emt 0:04:07]} Qd7 {[%emt 0:05:37]} 14. Bd4 {[%emt 0:15:01]}
Rfd8 {[%emt 0:09:05]} 15. Kb1 {[%emt 0:14:12]} Nxd5 {[%emt 0:14:51]} 16. Bxg7 {
[%emt 0:15:14]} Kxg7 {[%emt 0:00:46]} 17. Nxd5 {[%emt 0:02:10]} Bxd5 {[%emt 0:
02:32]} 18. Qe3 {[%emt 0:05:10]} Qc7 {[%emt 0:06:50]} 19. Nd4 {[%emt 0:07:09]}
Rac8 {[%emt 0:26:22]} 20. f4 {[%emt 0:00:55]} Qb7 {[%emt 0:15:27]} 21. Rhe1 {
[%emt 0:02:07]} Bxg2 {[%emt 0:13:12]} 22. h4 {[%emt 0:01:29]} Qd5 {[%emt 0:07:
20]} 23. f5 {[%emt 0:05:05]} Kh8 {[%emt 0:06:18]} 24. h5 {[%emt 0:07:30]} gxf5
{[%emt 0:04:17]} 25. Qxe7 {[%emt 0:01:03]} Qd6 {[%emt 0:00:44]} 26. Qe2 {
[%emt 0:06:32]} Qd5 {[%emt 0:01:50]} 27. Qe7 {[%emt 0:07:54]} Qd6 {[%emt 0:00:
05]} 28. Qe2 {[%emt 0:01:02]} Qd5 {[%emt 0:00:05]} 29. Qe7 {[%emt 0:01:14]} Qd6
{[%emt 0:00:05]} 30. Qe2 {[%emt 0:00:47]} 1/2-1/2

[Event "Limburg Open 2022"]
[Site "Maastricht"]
[Date "2022.06.04"]
[Round "2.9"]
[White "Lenaerts, Lennert"]
[Black "Jansen, Bob"]
[Result "1/2-1/2"]
[ECO "C18"]
[WhiteElo "2353"]
[BlackElo "2173"]
[PlyCount "65"]
[EventDate "2022.06.03"]
[EventType "swiss"]
[EventRounds "7"]
[EventCountry "NED"]
[SourceTitle "Limburg Open"]
[Source "Limburg Open"]
[SourceDate "2022.06.06"]
[SourceVersion "7"]
[SourceVersionDate "2022.06.06"]
[SourceQuality "1"]
[TimeControl "7200+15"]

1. e4 {[%emt 0:00:03]} e6 {[%emt 0:03:12]} 2. d4 {[%emt 0:00:12]} d5 {[%emt 0:
00:02]} 3. Nc3 {[%emt 0:00:34]} Bb4 {[%emt 0:00:05]} 4. e5 {[%emt 0:00:56]} c5
{[%emt 0:00:02]} 5. a3 {[%emt 0:00:32]} Ba5 {[%emt 0:00:03]} 6. b4 {[%emt 0:00:
51]} cxd4 {[%emt 0:00:03]} 7. Nb5 {[%emt 0:00:18]} Bc7 {[%emt 0:00:29]} 8. f4 {
[%emt 0:00:22]} Bd7 {[%emt 0:00:14]} 9. Nxc7+ {[%emt 0:00:07]} Qxc7 {[%emt 0:
00:03]} 10. Nf3 {[%emt 0:00:28]} Ba4 {[%emt 0:00:25]} 11. Bd3 {[%emt 0:00:18]}
Ne7 {[%emt 0:00:42]} 12. O-O {[%emt 0:01:49]} a6 {[%emt 0:03:01]} 13. Nxd4 {
[%emt 0:01:10]} Nbc6 {[%emt 0:03:17]} 14. Nb3 {[%emt 0:00:16]} O-O {[%emt 0:28:
39]} 15. Be3 {[%emt 0:00:20]} Bxb3 {[%emt 0:14:49]} 16. cxb3 {[%emt 0:00:55]}
d4 {[%emt 0:00:43]} 17. Bd2 {[%emt 0:02:12]} Qb6 {[%emt 0:05:21]} 18. Qe2 {
[%emt 0:11:05]} Nf5 {[%emt 0:26:14]} 19. Rf3 {[%emt 0:11:08]} Rfd8 {[%emt 0:10:
57]} 20. Rh3 {[%emt 0:04:08]} g6 {[%emt 0:01:44]} 21. g4 {[%emt 0:14:09]} Ne3 {
[%emt 0:02:54]} 22. Bxe3 {[%emt 0:07:10]} dxe3 {[%emt 0:00:01]} 23. Qxe3 {
[%emt 0:00:16]} Qxe3+ {[%emt 0:02:41]} 24. Rxe3 {[%emt 0:01:15]} g5 {[%emt 0:
00:02]} 25. fxg5 {[%emt 0:00:30]} Nxe5 {[%emt 0:01:01]} 26. Bxh7+ {[%emt 0:01:
03]} Kxh7 {[%emt 0:00:03]} 27. Rxe5 {[%emt 0:00:07]} Rd4 {[%emt 0:02:12]} 28.
h3 {[%emt 0:13:09]} Rd3 {[%emt 0:01:20]} 29. Rf1 {[%emt 0:00:07]} Kg7 {[%emt 0:
03:35]} 30. h4 {[%emt 0:05:35]} Rad8 {[%emt 0:08:27]} 31. Re2 {[%emt 0:13:52]}
R8d4 {[%emt 0:01:36]} 32. Rg2 {[%emt 0:01:26]} Rxb3 {[%emt 0:00:43]} 33. h5 {
[%emt 0:00:23]} 1/2-1/2

[Event "Limburg Open 2022"]
[Site "Maastricht"]
[Date "2022.06.04"]
[Round "2.10"]
[White "Freeke, Matthieu"]
[Black "Bruil, Rembrandt"]
[Result "1/2-1/2"]
[ECO "D00"]
[WhiteElo "2347"]
[BlackElo "2166"]
[PlyCount "76"]
[EventDate "2022.06.03"]
[EventType "swiss"]
[EventRounds "7"]
[EventCountry "NED"]
[SourceTitle "Limburg Open"]
[Source "Limburg Open"]
[SourceDate "2022.06.06"]
[SourceVersion "7"]
[SourceVersionDate "2022.06.06"]
[SourceQuality "1"]
[TimeControl "7200+15"]

1. d4 {[%emt 0:03:32]} d5 {[%emt 0:00:06]} 2. Nc3 {[%emt 0:00:52]} Nf6 {
[%emt 0:00:08]} 3. Bf4 {[%emt 0:00:04]} e6 {[%emt 0:00:25]} 4. Nb5 {[%emt 0:00:
06]} Na6 {[%emt 0:00:05]} 5. e3 {[%emt 0:00:04]} c6 {[%emt 0:06:57]} 6. Nc3 {
[%emt 0:00:05]} Bb4 {[%emt 0:00:20]} 7. Bxa6 {[%emt 0:20:03]} bxa6 {[%emt 0:01:
52]} 8. Nge2 {[%emt 0:00:06]} O-O {[%emt 0:02:04]} 9. a3 {[%emt 0:02:47]} Be7 {
[%emt 0:00:22]} 10. Na4 {[%emt 0:04:36]} Nd7 {[%emt 0:06:13]} 11. O-O {[%emt 0:
12:22]} a5 {[%emt 0:13:53]} 12. c4 {[%emt 0:17:56]} dxc4 {[%emt 0:00:54]} 13.
Qc2 {[%emt 0:00:09]} Ba6 {[%emt 0:00:19]} 14. Rfd1 {[%emt 0:00:06]} Qc8 {
[%emt 0:06:40]} 15. Nec3 {[%emt 0:04:48]} Rd8 {[%emt 0:19:24]} 16. Rac1 {
[%emt 0:06:10]} Qb7 {[%emt 0:06:28]} 17. Ne4 {[%emt 0:03:13]} Qb5 {[%emt 0:13:
45]} 18. Bd6 {[%emt 0:14:18]} Bxd6 {[%emt 0:16:44]} 19. Nxd6 {[%emt 0:01:52]}
Qd5 {[%emt 0:00:04]} 20. Nxc4 {[%emt 0:03:29]} Rac8 {[%emt 0:02:26]} 21. b3 {
[%emt 0:01:06]} Rb8 {[%emt 0:04:33]} 22. e4 {[%emt 0:05:14]} Qb5 {[%emt 0:02:
32]} 23. Rb1 {[%emt 0:00:26]} Nb6 {[%emt 0:02:08]} 24. Ne5 {[%emt 0:15:40]}
Nxa4 {[%emt 0:03:57]} 25. bxa4 {[%emt 0:00:05]} Qe2 {[%emt 0:00:05]} 26. Qxe2 {
[%emt 0:00:05]} Bxe2 {[%emt 0:00:06]} 27. Nxc6 {[%emt 0:00:02]} Bxd1 {[%emt 0:
00:47]} 28. Rxb8 {[%emt 0:00:05]} Rxb8 {[%emt 0:00:04]} 29. Nxb8 {[%emt 0:00:
04]} Bxa4 {[%emt 0:00:04]} 30. Na6 {[%emt 0:00:44]} Kf8 {[%emt 0:00:15]} 31.
Nc5 {[%emt 0:00:14]} Bb5 {[%emt 0:00:54]} 32. f4 {[%emt 0:03:50]} Ke7 {[%emt 0:
00:14]} 33. Kf2 {[%emt 0:00:01]} Kd6 {[%emt 0:03:04]} 34. Nb7+ {[%emt 0:01:39]}
Kc7 {[%emt 0:00:13]} 35. Nxa5 {[%emt 0:00:02]} Kb6 {[%emt 0:00:08]} 36. Nb3 {
[%emt 0:00:01]} Bc6 {[%emt 0:00:42]} 37. Ke3 {[%emt 0:00:07]} Kb5 {[%emt 0:00:
04]} 38. Nc5 {[%emt 0:00:22]} Kc4 {[%emt 0:00:26]} 1/2-1/2